bitfinex-derivatives/quotes_SOLF0:USTF0_20241024
["timestamp","ask_amount","ask_price","bid_price","bid_amount"]
[1729743976268,7.05880197,173.85,173.82,1.15058]
[1729743976562,4.4,173.88,173.84,7.05880197]
[1729743976762,4.4,173.89,173.86,7.05880197]
[1729743977063,4.4,173.91,173.86,7.05880197]
[1729743977364,4.4,173.91,173.87,1.1719]
[1729743977560,4.4,173.91,173.87,2.32248]
[1729743978466,4.4,173.91,173.88,2.8781]
[1729743978960,7.05880197,173.93,173.88,4.02868]
[1729743979268,4.4,173.92,173.88,1.15058]
[1729743979564,4.4,173.92,173.9,2.8779]
[1729743980061,4.4,173.92,173.9,4.02848]
[1729743981970,4.4,173.93,173.9,4.02848]
[1729743983070,4.4,173.93,173.9,1.15058]
[1729743983275,4.4,173.93,173.92,2.8776]
[1729743983677,4.4,173.93,173.92,4.02818]
[1729743988780,1.2182,174.02,173.92,1.15058]
[1729743988968,7.05880197,173.98,173.94,2.8771]
[1729743989170,4.4,173.97,173.94,4.02768]
[1729743990078,7.05880197,173.96,173.94,4.02768]
[1729743992082,7.05880197,173.96,173.94,1.15058]
[1729743993380,7.05880197,173.96,173.94,4.02778]
[1729743993779,11.45880197,173.97,173.94,4.02778]
[1729743994688,4.4,173.97,173.94,1.15058]
[1729743994889,11.45880197,173.97,173.95,2.8771]
[1729743995185,11.45880197,173.97,173.95,4.02768]
[1729743996782,7.05880197,173.96,173.95,1.15058]
[1729743996993,7.05880197,173.96,173.93,2.8774]
[1729743997286,7.05880197,173.96,173.93,4.02798]
[1729743998693,7.05880197,173.96,173.93,3.97746]
[1729744001583,4.4,173.97,173.95,2.877]
[1729744002088,4.4,173.97,173.95,3.97706]
[1729744003584,7.05880197,173.98,173.95,3.97706]
[1729744003784,4.4,173.97,173.95,3.97706]
[1729744004184,4.4,173.97,173.95,1.10006]
[1729744004381,4.4,173.97,173.96,2.8769]
[1729744004589,7.05880197,174.0,173.95,1.10006]
[1729744004786,4.4,173.99,173.95,1.10006]
[1729744004996,4.4,173.99,173.96,2.8769]
[1729744005393,4.4,173.99,173.96,3.97696]
[1729744005991,4.4,173.98,173.96,3.97696]
[1729744006896,4.4,173.97,173.96,3.97696]
[1729744045224,4.38,173.97,173.96,3.97696]
[1729744048131,4.38,173.97,173.85,7.05880197]
[1729744048132,11.43880197,173.97,173.85,7.05880197]
[1729744048327,7.05880197,173.92,173.85,8.20934197]
[1729744048527,4.38,173.91,173.85,8.20934197]
[1729744048931,4.38,173.91,173.85,8.15898197]
[1729744049327,4.38,173.91,173.88,2.8781]
[1729744049926,4.38,173.91,173.88,3.97828]
[1729744055030,4.38,173.91,173.9,2.8779]
[1729744055432,4.38,173.91,173.9,3.97808]
[1729744060235,11.43880197,173.91,173.81,2.4299]
[1729744060440,7.05880197,173.87,173.82,1.2246]
[1729744060732,11.43880197,173.87,173.82,1.2246]
[1729744060934,11.43880197,173.87,173.86,2.8786]
[1729744061635,11.43880197,173.87,173.86,3.97882]
[1729744064830,4.38,173.87,173.86,3.97882]
[1729744072443,7.05880197,173.91,173.86,1.10022]
[1729744072644,4.38,173.9,173.87,7.05880197]
[1729744072843,62.12,173.98,173.88,8.29730197]
[1729744072844,7.05880197,173.94,173.88,8.29730197]
[1729744073044,4.38,173.94,173.93,2.8773]
[1729744073438,4.38,173.94,173.93,3.97739]
[1729744074239,4.38,173.96,173.95,2.8769]
[1729744074443,7.05880197,173.97,173.93,1.10009]
[1729744074444,4.38,173.97,173.93,1.10009]
[1729744075034,4.38,173.97,173.93,8.15889197]
[1729744075241,2.8756,174.05,173.99,2.8764]
[1729744075542,7.05880197,174.03,173.99,2.8764]
[1729744075839,4.38,174.04,173.99,1.10009]
[1729744076044,4.38,174.03,173.99,1.10009]
[1729744077240,4.38,174.03,174.0,2.8762]
[1729744077840,4.38,174.03,174.0,3.97629]
[1729744078041,4.38,174.03,174.0,8.15889197]
[1729744078242,4.38,174.06,174.0,8.15889197]
[1729744078951,4.38,174.06,174.03,2.8757]
[1729744079348,4.38,174.06,174.03,3.97579]
[1729744079851,7.05880197,174.07,174.06,2.8753]
[1729744080046,4.38,174.07,174.03,8.15889197]
[1729744080956,4.38,174.07,174.04,2.8754]
[1729744081151,4.38,174.07,174.04,3.97552]
[1729744081555,11.43880197,174.07,174.04,3.97552]
[1729744082067,4.38,174.07,174.04,3.97552]
[1729744084760,4.38,174.07,174.05,2.8754]
[1729744084961,4.38,174.07,174.05,3.97552]
[1729744086361,4.38,174.07,174.05,1.10012]
[1729744086562,4.38,174.07,174.06,2.8753]
[1729744087351,4.38,174.07,174.06,3.97542]
[1729744087759,7.05880197,174.09,174.06,1.10012]
[1729744087961,4.38,174.1,174.08,2.8749]
[1729744088560,4.38,174.1,174.08,3.97502]
[1729744090654,4.38,174.1,174.09,2.8748]
[1729744090867,4.38,174.1,174.09,3.97492]
[1729744091067,2.8742,174.13,174.09,3.97492]
[1729744091269,0.6722,174.21,174.1,2.8746]
[1729744091270,11.43880197,174.12,174.1,2.8746]
[1729744091564,4.38,174.11,174.1,1.10012]
[1729744093062,4.38,174.11,174.1,3.97472]
[1729744093973,4.38,174.12,174.11,2.8744]
[1729744094269,4.38,174.13,174.11,2.8744]
[1729744094467,62.08,174.2,174.1,8.15892197]
[1729744094762,9.93240197,174.16,174.12,2.8742]
[1729744094965,4.38,174.15,174.12,2.8742]
[1729744095166,7.2538,174.15,174.12,1.10012]
[1729744095368,4.38,174.15,174.12,1.10012]
[1729744095765,4.38,174.15,174.12,3.97432]
[1729744096163,4.38,174.15,174.12,1.10012]
[1729744096367,7.05880197,174.16,174.13,2.8741]
[1729744096566,11.43880197,174.16,174.13,2.8741]
[1729744096870,14.31240197,174.16,174.1,7.05880197]
[1729744097073,7.05880197,174.15,174.11,2.8743]
[1729744097570,7.05880197,174.15,174.11,4.02326]
[1729744097767,7.05880197,174.15,174.11,2.8743]
[1729744098461,62.08,174.2,174.1,7.05880197]
[1729744098671,7.05880197,174.18,174.14,2.8738]
[1729744099270,9.93220197,174.18,174.14,2.8738]
[1729744099679,7.05880197,174.18,174.14,2.8738]
[1729744099876,7.05880197,174.17,174.14,2.8738]
[1729744100366,4.38,174.16,174.14,2.8738]
[1729744102874,4.38,174.16,174.14,3.97402]
[1729744104176,9.93260197,174.15,174.14,1.10022]
[1729744104378,9.93260197,174.15,174.14,1.14916]
[1729744104579,9.93260197,174.15,174.14,1.10022]
[1729744108477,9.93260197,174.15,174.14,1.14906]
[1729744108677,7.05880197,174.15,174.14,1.14906]
[1729744109376,7.05880197,174.15,174.14,1.10015]
[1729744110282,9.93260197,174.15,174.14,1.10015]
[1729744115084,2.8738,174.15,174.14,1.10015]
[1729744124889,23.0032,174.29,174.14,1.10015]
[1729744124890,67.7832,174.29,174.14,1.10015]
[1729744125188,7.05880197,174.23,174.18,7.05880197]
[1729744125490,4.38,174.22,174.18,7.05880197]
[1729744125694,2.8728,174.21,174.18,7.05880197]
[1729744125890,11.43880197,174.22,174.18,1.10015]
[1729744126288,11.43880197,174.22,174.17,1.09996]
[1729744126493,11.43880197,174.22,174.15,7.05880197]
[1729744126686,2.873,174.2,174.15,11.08106197]
[1729744126884,2.873,174.2,174.15,9.93240197]
[1729744127188,2.873,174.2,174.15,11.03249197]
[1729744128091,2.873,174.2,174.16,2.8736]
[1729744128695,9.93180197,174.2,174.16,3.97369]
[1729744129391,7.05880197,174.18,174.16,1.10009]
[1729744129595,7.05880197,174.18,174.14,2.8738]
[1729744129596,4.36,174.17,174.14,2.8738]
[1729744129787,4.36,174.17,174.14,4.02266]
[1729744130188,4.36,174.17,174.14,3.97402]
[1729744131087,14.29230197,174.17,174.14,1.10022]
[1729744131287,11.41880197,174.17,174.14,1.10022]
[1729744131701,7.05880197,174.16,174.14,1.10022]
[1729744131894,7.05880197,174.16,174.1,8.29770197]
[1729744131895,7.05880197,174.16,174.1,1.2389]
[1729744132095,7.05880197,174.12,174.1,1.10022]
[1729744132288,11.41880197,174.12,174.1,1.10022]
[1729744132492,11.41880197,174.12,174.1,1.14919]
[1729744132692,11.41880197,174.12,174.1,1.10025]
[1729744132893,7.05880197,174.11,174.1,1.10025]
[1729744133199,7.05880197,174.11,174.09,1.10025]
[1729744133399,7.05880197,174.11,174.08,1.10015]
[1729744134286,9.93320197,174.11,174.08,1.10015]
[1729744134492,7.05880197,174.11,174.08,1.10015]
[1729744134692,7.05880197,174.09,174.08,1.10015]
[1729744134897,7.05880197,174.09,174.06,1.10012]
[1729744135095,7.05880197,174.07,174.0,1.1799]
[1729744135296,7.05880197,174.03,174.0,1.1799]
[1729744135502,4.36,174.02,173.99,1.14949]
[1729744135696,4.36,174.02,173.97,9.42779197]
[1729744136199,7.05880197,174.07,174.01,7.05880197]
[1729744136397,0.6702,174.13,174.01,7.05880197]
[1729744136398,4.38,174.06,174.01,7.05880197]
[1729744136602,4.38,174.06,174.01,8.20829197]
[1729744137097,64.86365033,174.16,174.05,7.05880197]
[1729744137296,4.38,174.15,174.09,7.05880197]
[1729744137490,11.43880197,174.15,174.09,7.05880197]
[1729744137694,7.05880197,174.14,174.09,8.20829197]
[1729744138303,2.8741,174.13,174.09,8.20829197]
[1729744139191,4.38,174.15,174.09,8.20829197]
[1729744139397,4.38,174.15,174.1,9.93340197]
[1729744139802,4.38,174.15,174.1,11.08289197]
[1729744139803,7.2539,174.15,174.1,11.08289197]
[1729744140705,11.43880197,174.15,174.1,1.14949]
[1729744140899,2.8742,174.13,174.1,1.14949]
[1729744141101,2.8742,174.13,174.09,1.10018]
[1729744144411,9.93300197,174.13,174.09,1.10018]
[1729744146008,4.38,174.15,174.05,1.10018]
[1729744146009,7.05880197,174.1,174.05,1.10018]
[1729744146204,7.05880197,174.06,174.03,4.1179]
[1729744146409,4.36,174.05,174.03,4.1179]
[1729744146711,4.36,174.05,174.03,5.26755]
[1729744146912,4.36,174.05,174.04,2.8756]
[1729744147308,4.36,174.05,174.04,3.97575]
[1729744147516,4.36,174.05,174.04,4.02512]
[1729744148712,7.05880197,174.07,174.04,1.14952]
[1729744148913,4.36,174.14,174.11,2.8743]
[1729744149226,4.36,174.14,174.1,7.05880197]
[1729744149517,4.36,174.14,174.1,8.20832197]
[1729744149518,7.2341,174.14,174.1,8.20832197]
[1729744150018,7.2341,174.14,174.1,11.08282197]
[1729744150612,4.36,174.14,174.1,8.20832197]
[1729744150817,4.36,174.14,174.11,7.05880197]
[1729744151112,62.04,174.16,174.13,7.05880197]
[1729744151417,4.36,174.17,174.15,7.05880197]
[1729744151719,4.36,174.17,174.16,7.05880197]
[1729744152017,4.36,174.17,174.16,8.20832197]
[1729744152416,4.36,174.17,174.16,1.14952]
[1729744153008,4.36,174.17,174.16,4.02302]
[1729744155118,4.36,174.17,174.16,3.97359]
[1729744156223,4.36,174.17,174.12,1.206]
[1729744156524,4.36,174.17,174.12,1.14899]
[1729744156725,4.36,174.17,174.12,1.10022]
[1729744157320,4.36,174.17,174.13,11.03485135]
[1729744157529,4.36,174.17,174.13,13.32447135]
[1729744158217,4.36,174.17,174.16,2.8736]
[1729744158818,4.36,174.17,174.16,3.97382]
[1729744162034,4.36,174.17,174.16,2.8736]
[1729744162729,4.36,174.17,174.16,3.97382]
[1729744169119,2.4276,174.17,174.16,3.97382]
[1729744172232,2.4276,174.17,174.16,11.03552182]
[1729744172630,2.8727,174.22,174.18,2.8732]
[1729744172631,4.36,174.19,174.18,2.8732]
[1729744173036,4.36,174.19,174.18,3.97342]
[1729744173441,62.06,174.25,174.18,8.16192182]
[1729744173642,4.36,174.24,174.23,2.8724]
[1729744173848,62.06,174.25,174.23,2.8724]
[1729744174143,4.36,174.24,174.23,3.97262]
[1729744176347,4.36,174.25,174.23,3.97262]
[1729744176741,4.36,174.25,174.23,11.03432182]
[1729744177139,4.36,174.25,174.23,8.16192182]
[1729744177340,4.36,174.25,174.24,2.8723]
[1729744177944,4.36,174.25,174.24,3.97252]
[1729744179939,2.8714,174.3,174.26,2.8719]
[1729744180140,4.36,174.29,174.26,3.97212]
[1729744180339,9.93310182,174.3,174.26,3.97212]
[1729744180543,4.36,174.29,174.26,3.97212]
[1729744181536,7.2315,174.29,174.26,3.97212]
[1729744182745,7.2315,174.29,174.2,1.2624]
[1729744182746,7.06170182,174.27,174.22,8.16147182]
[1729744183048,7.06170182,174.24,174.2,1.14823]
[1729744183252,7.06170182,174.22,174.2,1.14823]
[1729744183439,7.06170182,174.22,174.17,7.06170182]
[1729744183440,11.42170182,174.22,174.17,7.06170182]
[1729744183744,11.42170182,174.22,174.19,2.33465]
[1729744183946,11.42170182,174.22,174.19,5.20765]
[1729744184346,4.36,174.22,174.19,5.20765]
[1729744184650,4.36,174.22,174.19,3.97315]
[1729744187246,4.36,174.22,174.2,2.8729]
[1729744187851,4.36,174.22,174.2,3.97299]
[1729744194156,4.36,174.22,174.2,1.10009]
[1729744194357,4.36,174.24,174.2,1.10009]
[1729744195154,4.36,174.24,174.21,2.8727]
[1729744195959,4.36,174.24,174.21,3.97279]
[1729744196748,4.36,174.24,174.21,1.10009]
[1729744197759,4.36,174.24,174.21,3.97279]
[1729744198158,4.36,174.24,174.2,1.10009]
[1729744198356,2.8725,174.23,174.2,3.97299]
[1729744200758,2.8728,174.22,174.2,1.10009]
[1729744200967,4.36,174.24,174.2,1.10009]
[1729744201262,4.36,174.24,174.18,1.10009]
[1729744201263,11.03425711,174.23,174.18,1.10009]
[1729744201564,11.03425711,174.23,174.18,1.14873]
[1729744201956,2.8729,174.21,174.18,1.10009]
[1729744202157,4.36,174.2,174.18,3.97329]
[1729744202358,4.36,174.2,174.18,1.10009]
[1729744203066,21.14774335,174.43,174.19,11.03425711]
[1729744203067,11.03425711,174.29,174.19,11.03425711]
[1729744203262,4.36,174.28,174.19,12.23635711]
[1729744203661,4.36,174.28,174.19,13.33644711]
[1729744203862,7.2317,174.28,174.19,13.33644711]
[1729744204263,11.41715641,174.28,174.23,7.05715641]
[1729744204469,7.05715641,174.28,174.24,2.8722]
[1729744204668,4.36,174.27,174.24,3.97229]
[1729744204969,4.36,174.27,174.24,1.10009]
[1729744205159,2.8721,174.25,174.22,1.10009]
[1729744205363,7.05715641,174.24,174.18,7.05715641]
[1729744205661,4.36,174.23,174.22,2.8725]
[1729744206260,4.36,174.23,174.22,3.97265]
[1729744207466,2.8718,174.27,174.23,2.8723]
[1729744207467,4.36,174.26,174.23,2.8723]
[1729744207670,4.36,174.26,174.22,1.10015]
[1729744208062,4.36,174.26,174.22,2.32535]
[1729744208263,4.36,174.26,174.23,2.8724]
[1729744208460,4.36,174.26,174.23,3.97255]
[1729744208863,4.36,174.26,174.23,1.10015]
[1729744209065,4.36,174.26,174.24,2.8723]
[1729744209463,4.36,174.26,174.24,3.97242]
[1729744211360,11.0273304,174.31,174.24,1.10012]
[1729744211567,4.36,174.3,174.24,1.10012]
[1729744212373,11.0273304,174.26,174.23,1.10012]
[1729744212572,4.36,174.25,174.22,1.14846]
[1729744212867,4.36,174.25,174.22,4.02096]
[1729744213175,4.36,174.25,174.22,1.10018]
[1729744214275,4.36,174.25,174.24,2.8723]
[1729744215076,4.36,174.27,174.26,2.8718]
[1729744215674,4.36,174.27,174.26,3.97176]
[1729744217776,4.36,174.27,174.26,1.09996]
[1729744220172,62.0,174.4,174.26,1.09996]
[1729744220368,15.3873304,174.39,174.28,11.0273304]
[1729744220573,18.23994709,174.39,174.28,11.0273304]
[1729744220776,18.23994709,174.39,174.28,12.1272904]
[1729744221479,13.87994709,174.39,174.28,12.1272904]
[1729744221779,2.8704,174.36,174.3,2.8712]
[1729744221974,11.0273304,174.39,174.28,12.1272904]
[1729744222166,4.36,174.38,174.28,12.1272904]
[1729744222368,4.36,174.38,174.3,11.0273304]
[1729744222672,4.36,174.38,174.28,12.1272904]
[1729744222872,2.8706,174.35,174.31,2.8711]
[1729744223078,4.36,174.37,174.28,12.1272904]
[1729744223974,2.8706,174.35,174.31,2.8711]
[1729744224275,4.36,174.37,174.31,1.09996]
[1729744224673,2.8022903,174.41,174.32,11.0273304]
[1729744224980,4.36,174.4,174.35,11.0273304]
[1729744225177,11.0273304,174.47,174.35,12.1272904]
[1729744225380,4.36,174.46,174.35,12.1272904]
[1729744225980,2.8697,174.4,174.35,14.9975904]
[1729744226171,4.36,174.4,174.35,1.09996]
[1729744226376,4.36,174.4,174.35,1.14741]
[1729744226577,2.8698,174.39,174.35,1.14741]
[1729744226882,2.8698,174.39,174.35,1.10006]
[1729744228184,4.36,174.4,174.35,1.10006]
[1729744228478,11.0273304,174.39,174.35,1.10006]
[1729744228685,11.0273304,174.39,174.33,1.10003]
[1729744228885,2.8706,174.34,174.32,1.14777]
[1729744229084,2.8706,174.34,174.32,1.10025]
[1729744236394,4.36,174.35,174.3,2.8713]
[1729744236395,4.36,174.35,174.3,1.10009]
[1729744236591,4.36,174.35,174.3,1.1478]
[1729744236787,4.36,174.35,174.3,1.10015]
[1729744237498,2.8711,174.32,174.3,1.10015]
[1729744239589,4.36,174.35,174.3,1.10015]
[1729744239790,7.2306,174.35,174.31,2.8711]
[1729744240088,4.36,174.35,174.31,2.8711]
[1729744240398,2.8706,174.34,174.31,1.10015]
[1729744241192,4.36,174.35,174.31,1.10015]
[1729744242300,2.871,174.33,174.31,1.10015]
[1729744244599,4.36,174.35,174.31,1.10015]
[1729744244796,7.2306,174.35,174.31,3.97125]
[1729744245193,7.2306,174.35,174.31,1.10015]
[1729744245194,4.36,174.35,174.31,1.10015]
[1729744245595,4.36,174.35,174.32,2.8708]
[1729744246099,4.36,174.35,174.33,2.8708]
[1729744246490,4.36,174.35,174.33,3.97095]
[1729744247197,4.36,174.35,174.33,1.10015]
[1729744247404,2.8706,174.34,174.33,1.10015]
[1729744247606,4.36,174.35,174.33,1.10015]
[1729744247806,7.2306,174.35,174.33,1.10015]
[1729744248100,12.22753038,174.41,174.33,1.10015]
[1729744248299,4.36,174.4,174.33,1.10015]
[1729744248701,2.87,174.38,174.33,3.97085]
[1729744249599,4.36,174.38,174.36,2.8703]
[1729744249803,4.36,174.38,174.32,11.02933038]
[1729744250001,4.36,174.38,174.32,12.12936038]
[1729744250512,4.36,174.39,174.35,2.8704]
[1729744250910,4.36,174.39,174.35,3.97043]
[1729744251203,4.36,174.39,174.36,2.8702]
[1729744251602,7.2298,174.39,174.36,2.8702]
[1729744251803,4.36,174.39,174.36,3.97023]
[1729744252000,4.36,174.39,174.37,2.8701]
[1729744252207,4.36,174.39,174.36,1.10003]
[1729744253208,4.36,174.39,174.37,2.87]
[1729744253611,4.36,174.39,174.37,3.97003]
[1729744254408,4.36,174.39,174.37,11.02283265]
[1729744255006,2.87,174.38,174.37,1.10003]
[1729744255203,4.36,174.39,174.37,1.10003]
[1729744255698,7.2298,174.39,174.37,1.10003]
[1729744256504,2.8698,174.39,174.37,1.10003]
[1729744258918,1.77015,174.36,174.32,7.05280265]
[1729744259119,7.05280265,174.37,174.32,7.05280265]
[1729744259315,7.05280265,174.37,174.32,8.20034265]
[1729744259516,7.05280265,174.37,174.32,8.15289265]
[1729744259716,4.36,174.4,174.35,7.05280265]
[1729744260012,4.36,174.4,174.32,1.10009]
[1729744260013,4.36,174.4,174.36,7.05280265]
[1729744260418,7.2297,174.4,174.36,9.92310265]
[1729744260714,7.2297,174.4,174.36,11.02319265]
[1729744260911,4.36,174.4,174.37,2.87]
[1729744261214,4.36,174.4,174.38,7.05280265]
[1729744261413,4.36,174.4,174.38,9.92270265]
[1729744261616,4.36,174.4,174.38,11.02279265]
[1729744262617,7.2295,174.41,174.38,11.02279265]
[1729744263213,4.36,174.41,174.38,11.02279265]
[1729744263619,4.36,174.41,174.4,7.05280265]
[1729744264410,4.36,174.41,174.4,8.15289265]
[1729744265417,2.869,174.44,174.4,11.02249265]
[1729744265613,7.229,174.44,174.4,11.02249265]
[1729744266016,2.8685,174.47,174.43,9.92190265]
[1729744266217,4.36,174.46,174.43,9.92190265]
[1729744266616,4.36,174.46,174.43,11.02199265]
[1729744266818,4.36,174.46,174.44,2.869]
[1729744267317,7.2284,174.48,174.45,7.05280265]
[1729744267722,7.2284,174.48,174.45,8.15289265]
[1729744269518,9.92150265,174.46,174.45,1.10009]
[1729744269713,7.05280265,174.46,174.45,1.14701]
[1729744269915,7.05280265,174.46,174.4,1.14701]
[1729744270125,2.8694,174.42,174.38,7.05280265]
[1729744270425,7.05280265,174.39,174.35,1.1803]
[1729744270626,2.87,174.38,174.35,1.1803]
[1729744270818,2.87,174.38,174.36,7.05280265]
[1729744271021,2.87,174.38,174.36,9.07617265]
[1729744271216,2.8701,174.37,174.36,1.14734]
[1729744271922,2.87,174.38,174.36,1.14734]
[1729744272917,7.2298,174.39,174.36,1.14734]
[1729744273226,4.36,174.39,174.36,1.14734]
[1729744273817,4.36,174.41,174.36,12.17175436]
[1729744274019,2.8681,174.5,174.4,11.02441436]
[1729744274322,61.96,174.59,174.45,2.8687]
[1729744274323,4.36,174.52,174.45,2.8687]
[1729744274621,4.36,174.51,174.45,1.14734]
[1729744275122,7.2279,174.51,174.46,2.8686]
[1729744275325,7.2279,174.51,174.45,1.14734]
[1729744275326,4.36,174.51,174.45,12.17175436]
[1729744276317,4.36,174.51,174.45,1.14734]
[1729744277018,4.36,174.51,174.45,1.10009]
[1729744277617,27.0,174.47,174.22,4.30402909]
[1729744277828,27.0,174.47,174.28,11.02441436]
[1729744277829,11.02441436,174.4,174.28,11.02441436]
[1729744278122,2.8705,174.35,174.29,2.8714]
[1729744278426,7.5305,174.35,174.29,2.8714]
[1729744278618,7.5305,174.35,174.29,1.10012]
[1729744278819,4.66,174.35,174.29,1.10012]
[1729744279119,15.68441436,174.35,174.29,1.10012]
[1729744279324,4.66,174.35,174.29,1.10012]
[1729744279520,4.66,174.35,174.29,1.14777]
[1729744279913,4.66,174.35,174.26,11.02441436]
[1729744280121,11.02441436,174.33,174.26,1.10012]
[1729744280312,11.02441436,174.33,174.26,1.14784]
[1729744280516,11.02441436,174.33,174.26,1.10015]
[1729744282221,2.8714,174.3,174.26,1.10015]
[1729744282426,4.66,174.29,174.26,1.10015]
[1729744284432,17.63989798,174.34,174.26,1.10015]
[1729744284628,2.8711,174.32,174.26,1.10015]
[1729744285034,7.5308,174.33,174.26,3.97195]
[1729744285235,4.66,174.33,174.26,3.97195]
[1729744285837,4.66,174.33,174.26,1.10015]
[1729744286224,4.66,174.32,174.26,3.97195]
[1729744286938,7.531,174.32,174.26,3.97195]
[1729744289336,7.531,174.32,174.26,1.10015]
[1729744289637,7.531,174.32,174.27,2.8717]
[1729744290841,7.531,174.32,174.27,1.10015]
[1729744291137,7.531,174.32,174.28,2.8716]
[1729744291337,7.531,174.32,174.28,3.97175]
[1729744294237,4.66,174.32,174.28,3.97175]
[1729744296335,4.68,174.32,174.31,2.871]
[1729744296950,4.68,174.32,174.31,3.97115]
[1729744297340,20.84939798,174.39,174.31,3.97115]
[1729744297543,4.68,174.38,174.31,3.97115]
[1729744298550,2.8705,174.35,174.31,3.97115]
[1729744298752,4.68,174.34,174.31,3.97115]
[1729744299641,4.68,174.34,174.31,1.10015]
[1729744301253,4.68,174.34,174.31,3.97125]
[1729744304138,4.68,174.34,174.31,1.10015]
[1729744304343,2.8709,174.33,174.31,1.10015]
[1729744304742,11.03009694,174.33,174.31,1.10015]
[1729744304939,2.8714,174.3,174.26,2.8718]
[1729744305147,4.68,174.3,174.26,1.1481]
[1729744305344,4.68,174.3,174.26,1.10025]
[1729744305540,4.68,174.3,174.28,2.8715]
[1729744305740,4.68,174.3,174.28,3.97165]
[1729744308555,4.68,174.3,174.28,1.10015]
[1729744310554,7.4513,174.31,174.28,1.10015]
[1729744311654,2.8706,174.35,174.31,2.8711]
[1729744311850,4.58,174.34,174.28,1.10015]
[1729744312052,4.58,174.33,174.28,1.10015]
[1729744312758,4.58,174.33,174.29,2.8714]
[1729744312759,7.4508,174.33,174.29,2.8714]
[1729744312959,4.58,174.33,174.29,2.8714]
[1729744313456,4.58,174.33,174.29,3.97162]
[1729744314152,2.8711,174.32,174.29,1.10022]
[1729744314757,4.58,174.32,174.29,1.10022]
[1729744315554,4.58,174.32,174.3,2.8713]
[1729744316661,4.58,174.32,174.3,3.97152]
[1729744323767,11.63922567,174.32,174.3,1.10022]
[1729744323956,11.63922567,174.32,174.29,1.10015]
[1729744323957,7.05922567,174.31,174.29,1.10015]
[1729744324152,7.05922567,174.31,174.29,1.14807]
[1729744324566,7.05922567,174.31,174.29,1.10028]
[1729744324567,2.8713,174.3,174.29,1.10028]
[1729744324762,2.8713,174.3,174.28,1.10028]
[1729744324960,7.05922567,174.29,174.23,8.25722567]
[1729744325166,4.58,174.28,174.23,9.35744567]
[1729744326365,4.58,174.28,174.25,2.8721]
[1729744327069,4.58,174.28,174.25,3.97232]
[1729744328162,9.93122567,174.26,174.23,2.8724]
[1729744328372,9.93122567,174.26,174.23,4.02076]
[1729744328555,7.05922567,174.26,174.23,4.02076]
[1729744328960,7.05922567,174.26,174.23,3.97262]
[1729744329261,7.05922567,174.26,174.23,4.02073]
[1729744329462,7.05922567,174.26,174.23,3.97262]
[1729744330365,2.8718,174.27,174.23,3.97262]
[1729744330566,11.03013439,174.25,174.04,2.84127263]
[1729744330768,11.03013439,174.25,174.07,2.5488]
[1729744330769,4.58,174.24,174.07,2.5488]
[1729744330964,11.03013439,174.13,174.07,2.43602]
[1729744331273,2.8745,174.11,174.07,1.14902]
[1729744331871,2.8745,174.11,174.07,1.10031]
[1729744332767,2.8747,174.1,174.07,1.10031]
[1729744332969,4.58,174.12,174.07,3.97531]
[1729744334076,62.0,174.23,174.08,2.8748]
[1729744334261,11.03013439,174.19,174.08,3.6761]
[1729744334465,2.8736,174.17,174.08,3.6761]
[1729744334770,2.8736,174.17,174.1,2.8746]
[1729744335066,4.58,174.18,174.1,3.97478]